[Event "Nino Khurtsidze Memorial 2019"]
[Site "Vani"]
[Date "2019.09.17"]
[Round "2.3"]
[White "Khotenashvili, Bela"]
[Black "Melia, Salome"]
[Result "1-0"]
[ECO "A05"]
[WhiteElo "2453"]
[BlackElo "2376"]
[Annotator "ChessBase"]
[PlyCount "95"]
[EventDate "2019.09.17"]
[EventType "tourn"]
[EventCountry "GEO"]
[SourceTitle "playchess.com"]
[Source "ChessBase"]
[SourceQuality "1"]
[TimeControl "900+10"]

1. Nf3 {[%emt 0:00:00]} Nf6 {[%emt 0:00:00]} 2. g3 {[%emt 0:00:03]} d5 {[%emt 0:00:00]} 3. Bg2 {[%emt 0:00:02]} e6 {[%emt 0:00:00]} 4. O-O {[%emt 0:00:02]} b5 {[%emt 0:00:02]} 5. d3 {[%emt 0:00:07]} Bb7 {[%emt 0:00:11]} 6. Nbd2 {[%emt 0:00:02]} Be7 {[%emt 0:00:07]} 7. e4 {[%emt 0:00:09]} O-O {[%emt 0:00:08]} 8. e5 {[%emt 0:00:08]} Nfd7 {[%emt 0:00:02]} 9. Re1 {[%emt 0:00:03]} c5 {[%emt 0:00:01]} 10. Nf1 {[%emt 0:00:07]} Nc6 {[%emt 0:00:05]} 11. h4 {[%emt 0:00:02]} h6 {[%emt 0:00:09]} 12. N1h2 {[%emt 0:00:16]} Re8 {[%emt 0:00:01]} 13. Ng4 {[%emt 0:00:11]} Bf8 {[%emt 0:00:09]} 14. h5 {[%emt 0:00:29]} b4 {[%emt 0:00:34]} 15. Bf4 {[%emt 0:00:26]} a5 {[%emt 0:00:02]} 16. Qd2 {[%emt 0:00:28]} a4 {[%emt 0:03:16]} 17. a3 {[%emt 0:00:19]} bxa3 {[%emt 0:00:10]} 18. bxa3 {[%emt 0:02:06]} Nd4 {[%emt 0:01:31]} 19. Rab1 {[%emt 0:03:28]} Bc6 {[%emt 0:00:53]} 20. c3 {[%emt 0:03:54]} Nb3 {[%emt 0:01:28]} 21. Qc2 {[%emt 0:00:42]} Rc8 {[%emt 0:00:27]} 22. c4 {[%emt 0:00:12]} Qa5 {[%emt 0:04:31]} 23. Ne3 {[%emt 0:03:47]} Nb6 {[%emt 0:02:44]} 24. Qb2 {[%emt 0:01:36]} dxc4 {[%emt 0:00:21]} 25. dxc4 {[%emt 0:00:03]} Qa6 {[%emt 0:00:56]} 26. Qc3 {[%emt 0:00:07]} Qa8 {[%emt 0:00:55]} 27. Ng4 {[%emt 0:00:20]} Qa6 {[%emt 0:00:25]} 28. Bf1 {[%emt 0:00:11]} Red8 {[%emt 0:00:16]} 29. Bxh6 {[%emt 0:00:07]} Bxf3 {[%emt 0:00:12]} 30. Qxf3 {[%emt 0:00:01]} Nd4 {[%emt 0:00:11]} 31. Qe4 {[%emt 0:00:05]} Nb3 {[%emt 0:00:10]} 32. Be3 {[%emt 0:00:12]} Qa8 {[%emt 0:00:09]} 33. Qf4 {[%emt 0:00:22]} Rb8 {[%emt 0:00:11]} 34. h6 {[%emt 0:00:02]} Nd4 {[%emt 0:00:08]} 35. Bg2 {[%emt 0:00:01]} Qa7 {[%emt 0:00:10]} 36. hxg7 {[%emt 0:00:02]} Bxg7 {[%emt 0:00:02]} 37. Nf6+ {[%emt 0:00:03]} Kf8 {[%emt 0:00:16]} 38. Rbc1 {[%emt 0:00:17]} Nd7 {[%emt 0:00:09]} 39. Nh5 {[%emt 0:00:11]} Bxe5 {[%emt 0:00:16]} 40. Qh6+ {[%emt 0:00:03]} Ke8 {[%emt 0:00:03]} 41. Bg5 {[%emt 0:00:05]} Nf5 {[%emt 0:00:12]} 42. Qh7 {[%emt 0:00:07]} Nf8 {[%emt 0:00:06]} 43. Qg8 {[%emt 0:00:06]} Bb2 {[%emt 0:00:15]} 44. Rb1 {[%emt 0:00:37]} Bc3 {[%emt 0:00:10]} 45. Bc6+ {[%emt 0:00:24]} Rd7 {[%emt 0:00:06]} 46. Rxb8+ {[%emt 0:00:04]} Qxb8 {[%emt 0:00:01]} 47. Rd1 {[%emt 0:00:04]} Nd4 {[%emt 0:00:25]} 48. Ng7# {[%emt 0:00:08]} 1-0

[Event "Nino Khurtsidze Memorial 2019"]
[Site "Vani"]
[Date "2019.09.17"]
[Round "2.4"]
[White "Kachiani-Gersinska, Ketino"]
[Black "Dzagnidze, Nana"]
[Result "0-1"]
[ECO "A40"]
[WhiteElo "2317"]
[BlackElo "2502"]
[Annotator "ChessBase"]
[PlyCount "74"]
[EventDate "2019.09.17"]
[EventType "tourn"]
[EventCountry "GEO"]
[SourceTitle "playchess.com"]
[Source "ChessBase"]
[SourceQuality "1"]
[TimeControl "900+10"]

1. d4 {[%emt 0:00:00]} e6 {[%emt 0:00:00]} 2. c4 {[%emt 0:00:00]} b6 {[%emt 0:01:22]} 3. e4 {[%emt 0:00:06]} Bb7 {[%emt 0:00:01]} 4. Bd3 {[%emt 0:00:03]} f5 {[%emt 0:00:32]} 5. exf5 {[%emt 0:00:11]} Bb4+ {[%emt 0:00:02]} 6. Kf1 {[%emt 0:00:02]} Nf6 {[%emt 0:00:05]} 7. Nf3 {[%emt 0:00:18]} O-O {[%emt 0:00:19]} 8. c5 {[%emt 0:00:17]} bxc5 {[%emt 0:00:31]} 9. a3 {[%emt 0:00:02]} c4 {[%emt 0:00:42]} 10. Bxc4 {[%emt 0:00:20]} Ba5 {[%emt 0:01:08]} 11. Bg5 {[%emt 0:00:43]} Kh8 {[%emt 0:00:53]} 12. h4 {[%emt 0:01:33]} Bxf3 {[%emt 0:02:27]} 13. Qxf3 {[%emt 0:00:02]} Nc6 {[%emt 0:00:01]} 14. fxe6 {[%emt 0:03:39]} Nxd4 {[%emt 0:00:36]} 15. Qd3 {[%emt 0:00:02]} Bb6 {[%emt 0:00:41]} 16. Nc3 {[%emt 0:01:34]} dxe6 {[%emt 0:01:51]} 17. Na4 {[%emt 0:02:20]} Qd6 {[%emt 0:01:25]} 18. Nxb6 {[%emt 0:00:50]} axb6 {[%emt 0:00:07]} 19. Bxf6 {[%emt 0:03:21]} Rxf6 {[%emt 0:00:06]} 20. Rd1 {[%emt 0:00:02]} c5 {[%emt 0:00:38]} 21. Ba2 {[%emt 0:00:54]} Raf8 {[%emt 0:01:28]} 22. Rd2 {[%emt 0:00:01]} Qf4 {[%emt 0:00:38]} 23. Rh3 {[%emt 0:00:28]} Rh6 {[%emt 0:01:20]} 24. h5 {[%emt 0:01:14]} Qg4 {[%emt 0:00:48]} 25. Kg1 {[%emt 0:00:17]} Rxh5 {[%emt 0:00:25]} 26. f3 {[%emt 0:00:17]} Qg5 {[%emt 0:00:32]} 27. Rxh5 {[%emt 0:00:02]} Qxh5 {[%emt 0:00:04]} 28. Bb1 {[%emt 0:00:13]} g6 {[%emt 0:00:08]} 29. Qe4 {[%emt 0:00:29]} Qg5 {[%emt 0:00:08]} 30. Rf2 {[%emt 0:00:11]} Qc1+ {[%emt 0:00:18]} 31. Kh2 {[%emt 0:00:09]} Rf4 {[%emt 0:00:23]} 32. Qe5+ {[%emt 0:00:11]} Kg8 {[%emt 0:00:01]} 33. Kg3 {[%emt 0:00:27]} Rf8 {[%emt 0:00:29]} 34. Be4 {[%emt 0:00:03]} Qe3 {[%emt 0:00:08]} 35. Rf1 {[%emt 0:00:09]} Ne2+ {[%emt 0:00:05]} 36. Kh3 {[%emt 0:00:08]} Qh6+ {[%emt 0:00:03]} 37. Kg4 {[%emt 0:00:04]} Rf4+ {[%emt 0:00:01]} 0-1

[Event "Nino Khurtsidze Memorial 2019"]
[Site "Vani"]
[Date "2019.09.17"]
[Round "2.5"]
[White "Lomineishvili, Maia"]
[Black "Javakhishvili, Lela"]
[Result "1/2-1/2"]
[ECO "A41"]
[WhiteElo "2342"]
[BlackElo "2458"]
[Annotator "ChessBase"]
[PlyCount "38"]
[EventDate "2019.09.17"]
[EventType "tourn"]
[EventCountry "GEO"]
[SourceTitle "playchess.com"]
[Source "ChessBase"]
[SourceQuality "1"]
[TimeControl "900+10"]

1. d4 {[%emt 0:00:00]} d6 {[%emt 0:00:00]} 2. b3 {[%emt 0:00:34]} e5 {[%emt 0:01:04]} 3. Bb2 {[%emt 0:01:17]} Nc6 {[%emt 0:01:14]} 4. Nf3 {[%emt 0:01:37]} e4 {[%emt 0:00:29]} 5. d5 {[%emt 0:00:34]} exf3 {[%emt 0:00:30]} 6. dxc6 {[%emt 0:00:01]} bxc6 {[%emt 0:00:10]} 7. exf3 {[%emt 0:00:15]} Nf6 {[%emt 0:00:14]} 8. Bd3 {[%emt 0:00:18]} Be7 {[%emt 0:00:05]} 9. O-O {[%emt 0:00:08]} O-O {[%emt 0:00:05]} 10. c4 {[%emt 0:00:15]} Nd7 {[%emt 0:01:25]} 11. Qc2 {[%emt 0:01:41]} h6 {[%emt 0:01:04]} 12. Bh7+ {[%emt 0:01:15]} Kh8 {[%emt 0:00:02]} 13. Be4 {[%emt 0:00:01]} Bb7 {[%emt 0:00:12]} 14. f4 {[%emt 0:00:16]} Bf6 {[%emt 0:00:17]} 15. Nc3 {[%emt 0:00:14]} Nc5 {[%emt 0:00:04]} 16. Bf3 {[%emt 0:00:03]} Ne6 {[%emt 0:00:11]} 17. Ne2 {[%emt 0:00:09]} Rb8 {[%emt 0:00:19]} 18. Rad1 {[%emt 0:00:09]} Re8 {[%emt 0:01:23]} 19. Rfe1 {[%emt 0:00:27]} c5 {[%emt 0:01:58]} 1/2-1/2

[Event "Nino Khurtsidze Memorial 2019"]
[Site "Vani"]
[Date "2019.09.17"]
[Round "3.1"]
[White "Javakhishvili, Lela"]
[Black "Mamedjarova, Zeinab"]
[Result "1/2-1/2"]
[ECO "D23"]
[WhiteElo "2458"]
[BlackElo "2300"]
[Annotator "ChessBase"]
[PlyCount "273"]
[EventDate "2019.09.17"]
[EventType "tourn"]
[EventCountry "GEO"]
[SourceTitle "playchess.com"]
[Source "ChessBase"]
[SourceQuality "1"]
[TimeControl "900+10"]

1. d4 {[%emt 0:00:00]} d5 {[%emt 0:00:00]} 2. c4 {[%emt 0:00:00]} dxc4 {[%emt 0:00:00]} 3. Nf3 {[%emt 0:00:16]} Nf6 {[%emt 0:00:02]} 4. Qa4+ {[%emt 0:00:04]} c6 {[%emt 0:01:12]} 5. Qxc4 {[%emt 0:00:04]} Bf5 {[%emt 0:00:03]} 6. g3 {[%emt 0:00:03]} e6 {[%emt 0:00:03]} 7. Bg2 {[%emt 0:00:02]} Qd5 {[%emt 0:01:22]} 8. Qa4 {[%emt 0:01:04]} Bxb1 {[%emt 0:02:53]} 9. Rxb1 {[%emt 0:00:04]} Qe4 {[%emt 0:00:23]} 10. Ra1 {[%emt 0:00:21]} Nbd7 {[%emt 0:01:21]} 11. Nh4 {[%emt 0:01:31]} Nb6 {[%emt 0:01:21]} 12. Qd1 {[%emt 0:02:03]} Bb4+ {[%emt 0:00:09]} 13. Kf1 {[%emt 0:00:10]} Qg4 {[%emt 0:00:03]} 14. h3 {[%emt 0:01:04]} Qh5 {[%emt 0:00:03]} 15. a3 {[%emt 0:00:16]} Be7 {[%emt 0:00:03]} 16. Qd3 {[%emt 0:01:46]} a6 {[%emt 0:01:22]} 17. a4 {[%emt 0:01:14]} Qa5 {[%emt 0:00:02]} 18. Bd2 {[%emt 0:00:56]} Bb4 {[%emt 0:00:01]} 19. Bxb4 {[%emt 0:00:30]} Qxb4 {[%emt 0:00:01]} 20. Qc3 {[%emt 0:02:22]} Nfd5 {[%emt 0:01:12]} 21. Qxb4 {[%emt 0:00:04]} Nxb4 {[%emt 0:00:02]} 22. e3 {[%emt 0:00:12]} O-O {[%emt 0:00:26]} 23. Ke2 {[%emt 0:00:02]} a5 {[%emt 0:00:32]} 24. Rhc1 {[%emt 0:00:05]} Rfe8 {[%emt 0:00:06]} 25. f4 {[%emt 0:00:02]} f6 {[%emt 0:00:19]} 26. Nf3 {[%emt 0:00:03]} Nd7 {[%emt 0:00:20]} 27. h4 {[%emt 0:00:51]} Rad8 {[%emt 0:00:59]} 28. Rd1 {[%emt 0:00:02]} Re7 {[%emt 0:01:44]} 29. Bh3 {[%emt 0:00:11]} g6 {[%emt 0:00:13]} 30. Rd2 {[%emt 0:00:25]} Kg7 {[%emt 0:00:09]} 31. e4 {[%emt 0:00:31]} Rc8 {[%emt 0:00:36]} 32. Rc1 {[%emt 0:00:18]} f5 {[%emt 0:00:05]} 33. exf5 {[%emt 0:00:25]} exf5+ {[%emt 0:00:09]} 34. Ne5 {[%emt 0:00:08]} Rd8 {[%emt 0:00:55]} 35. Bg2 {[%emt 0:00:19]} c5 {[%emt 0:00:56]} 36. Rcd1 {[%emt 0:01:32]} cxd4 {[%emt 0:00:32]} 37. Rxd4 {[%emt 0:00:03]} Nxe5 {[%emt 0:00:06]} 38. Rxd8 {[%emt 0:00:03]} Nec6+ {[%emt 0:00:58]} 39. Kf2 {[%emt 0:00:09]} Nxd8 {[%emt 0:00:03]} 40. Rxd8 {[%emt 0:00:02]} Rc7 {[%emt 0:00:05]} 41. Rd2 {[%emt 0:00:18]} b6 {[%emt 0:00:14]} 42. Bf1 {[%emt 0:00:03]} Rc1 {[%emt 0:00:16]} 43. b3 {[%emt 0:00:12]} Rc2 {[%emt 0:00:27]} 44. Rxc2 {[%emt 0:00:02]} Nxc2 {[%emt 0:00:01]} 45. Bc4 {[%emt 0:00:10]} Kf6 {[%emt 0:00:02]} 46. Kf3 {[%emt 0:00:17]} h6 {[%emt 0:00:01]} 47. g4 {[%emt 0:01:11]} fxg4+ {[%emt 0:00:07]} 48. Kxg4 {[%emt 0:00:03]} Ne3+ {[%emt 0:00:10]} 49. Kf3 {[%emt 0:00:12]} Nxc4 {[%emt 0:00:07]} 50. bxc4 {[%emt 0:00:02]} Kf5 {[%emt 0:00:01]} 51. Kg3 {[%emt 0:00:03]} Ke4 {[%emt 0:00:26]} 52. Kg4 {[%emt 0:00:02]} Kd4 {[%emt 0:00:09]} 53. h5 {[%emt 0:00:04]} gxh5+ {[%emt 0:00:06]} 54. Kxh5 {[%emt 0:00:02]} Ke4 {[%emt 0:00:27]} 55. Kg4 {[%emt 0:00:01]} h5+ {[%emt 0:00:21]} 56. Kg5 {[%emt 0:00:02]} h4 {[%emt 0:00:02]} 57. f5 {[%emt 0:00:03]} h3 {[%emt 0:00:13]} 58. f6 {[%emt 0:00:01]} h2 {[%emt 0:00:02]} 59. f7 {[%emt 0:00:02]} h1=Q {[%emt 0:00:01]} 60. f8=Q {[%emt 0:00:02]} Qg2+ {[%emt 0:00:08]} 61. Kh6 {[%emt 0:00:08]} Qh3+ {[%emt 0:00:15]} 62. Kg7 {[%emt 0:00:18]} Qg4+ {[%emt 0:00:26]} 63. Kh8 {[%emt 0:00:07]} Qh5+ {[%emt 0:00:08]} 64. Kg8 {[%emt 0:00:13]} Qg5+ {[%emt 0:00:14]} 65. Kh8 {[%emt 0:00:02]} Qe5+ {[%emt 0:00:03]} 66. Kg8 {[%emt 0:00:04]} Qe6+ {[%emt 0:00:03]} 67. Kh8 {[%emt 0:00:06]} Qxc4 {[%emt 0:00:15]} 68. Qe8+ {[%emt 0:00:17]} Kd3 {[%emt 0:00:02]} 69. Qg6+ {[%emt 0:00:10]} Kc3 {[%emt 0:00:16]} 70. Qg3+ {[%emt 0:00:57]} Kb4 {[%emt 0:00:12]} 71. Qd6+ {[%emt 0:00:07]} Qc5 {[%emt 0:00:01]} 72. Qf4+ {[%emt 0:00:08]} Kb3 {[%emt 0:00:03]} 73. Qg4 {[%emt 0:00:27]} Qb4 {[%emt 0:00:17]} 74. Qd1+ Ka2 75. Qd5+ {[%emt 0:00:35]} Qb3 {[%emt 0:00:15]} 76. Qc6 {[%emt 0:00:09]} Ka3 {[%emt 0:00:12]} 77. Kh7 {[%emt 0:00:11]} Qd3+ {[%emt 0:00:24]} 78. Kg8 {[%emt 0:00:13]} Qg3+ {[%emt 0:00:04]} 79. Kh7 {[%emt 0:00:07]} Qh4+ {[%emt 0:00:08]} 80. Kg8 {[%emt 0:00:06]} Qxa4 {[%emt 0:00:17]} 81. Qc1+ {[%emt 0:00:02]} Ka2 {[%emt 0:00:21]} 82. Qd2+ {[%emt 0:00:02]} Kb1 {[%emt 0:00:03]} 83. Qe1+ {[%emt 0:00:06]} Kc2 {[%emt 0:00:06]} 84. Qf2+ {[%emt 0:00:06]} Kc3 {[%emt 0:00:09]} 85. Qe3+ {[%emt 0:00:22]} Kc4 {[%emt 0:00:06]} 86. Qxb6 {[%emt 0:00:54]} Qe8+ {[%emt 0:00:07]} 87. Kh7 {[%emt 0:00:05]} Qd7+ {[%emt 0:00:08]} 88. Kg8 {[%emt 0:00:04]} a4 {[%emt 0:00:05]} 89. Qa6+ {[%emt 0:00:09]} Kb4 {[%emt 0:00:09]} 90. Qb6+ {[%emt 0:00:06]} Qb5 {[%emt 0:00:10]} 91. Qd6+ {[%emt 0:00:03]} Qc5 {[%emt 0:00:02]} 92. Qd2+ {[%emt 0:00:05]} Qc3 {[%emt 0:00:28]} 93. Qd6+ {[%emt 0:00:07]} Kb3 {[%emt 0:00:05]} 94. Qb6+ {[%emt 0:00:15]} Ka2 {[%emt 0:00:01]} 95. Kh7 {[%emt 0:00:36]} a3 {[%emt 0:00:31]} 96. Qf2+ {[%emt 0:00:23]} Kb1 {[%emt 0:00:02]} 97. Qf1+ {[%emt 0:00:21]} Kc2 {[%emt 0:00:08]} 98. Qg2+ {[%emt 0:00:05]} Kb3 {[%emt 0:00:30]} 99. Qb7+ {[%emt 0:00:14]} Kc2 {[%emt 0:00:19]} 100. Qg2+ {[%emt 0:00:03]} Qd2 {[%emt 0:00:02]} 101. Qc6+ {[%emt 0:00:18]} Kb3 {[%emt 0:00:03]} 102. Qb7+ {[%emt 0:00:09]} Qb4 {[%emt 0:00:15]} 103. Qf3+ {[%emt 0:00:04]} Ka2 {[%emt 0:00:09]} 104. Qg2+ {[%emt 0:00:16]} Qb2 {[%emt 0:00:03]} 105. Qd5+ {[%emt 0:00:29]} Ka1 {[%emt 0:00:01]} 106. Kh6 {[%emt 0:00:26]} Qc1+ {[%emt 0:00:18]} 107. Kh5 {[%emt 0:00:06]} a2 {[%emt 0:00:15]} 108. Qd4+ {[%emt 0:00:04]} Kb1 {[%emt 0:00:03]} 109. Qb4+ {[%emt 0:00:06]} Qb2 {[%emt 0:00:24]} 110. Qe1+ {[%emt 0:00:04]} Kc2 {[%emt 0:00:02]} 111. Qe4+ {[%emt 0:00:23]} Kd2 {[%emt 0:00:20]} 112. Qd5+ {[%emt 0:00:06]} Ke3 {[%emt 0:00:08]} 113. Qg5+ {[%emt 0:00:07]} Ke4 {[%emt 0:00:09]} 114. Qg6+ {[%emt 0:00:01]} Ke3 {[%emt 0:00:16]} 115. Qg3+ {[%emt 0:00:04]} Ke4 {[%emt 0:00:07]} 116. Qg6+ {[%emt 0:00:01]} Kd5 {[%emt 0:00:04]} 117. Qf7+ {[%emt 0:00:02]} Kc5 {[%emt 0:00:04]} 118. Qc7+ {[%emt 0:00:03]} Kd5 {[%emt 0:00:06]} 119. Qf7+ {[%emt 0:00:04]} Kc5 {[%emt 0:00:04]} 120. Qc7+ {[%emt 0:00:02]} Kb4 {[%emt 0:00:01]} 121. Qb6+ {[%emt 0:00:05]} Kc3 {[%emt 0:00:03]} 122. Qe3+ {[%emt 0:00:06]} Kc4 {[%emt 0:00:10]} 123. Qe6+ {[%emt 0:00:03]} Kd3 {[%emt 0:00:04]} 124. Qf5+ {[%emt 0:00:09]} Kc3 {[%emt 0:00:01]} 125. Qc5+ {[%emt 0:00:09]} Kd2 {[%emt 0:00:22]} 126. Qf2+ {[%emt 0:00:07]} Kc1 {[%emt 0:00:01]} 127. Qe1+ {[%emt 0:00:08]} Kc2 {[%emt 0:00:01]} 128. Qe2+ {[%emt 0:00:03]} Kb1 {[%emt 0:00:04]} 129. Qd1+ {[%emt 0:00:37]} Qc1 {[%emt 0:00:03]} 130. Qb3+ {[%emt 0:00:03]} Ka1 {[%emt 0:00:04]} 131. Kg4 {[%emt 0:00:35]} Qg1+ {[%emt 0:00:04]} 132. Kh5 {[%emt 0:00:03]} Qc5+ {[%emt 0:00:15]} 133. Kg4 {[%emt 0:00:10]} Qd4+ {[%emt 0:00:28]} 134. Kh5 {[%emt 0:00:03]} Qe5+ {[%emt 0:00:09]} 135. Kg4 {[%emt 0:00:10]} Qg7+ {[%emt 0:00:17]} 136. Kh5 {[%emt 0:00:08]} Qh7+ {[%emt 0:00:12]} 137. Kg5 {[%emt 0:00:19]} 1/2-1/2

[Event "Nino Khurtsidze Memorial 2019"]
[Site "Vani"]
[Date "2019.09.17"]
[Round "3.2"]
[White "Dzagnidze, Nana"]
[Black "Lomineishvili, Maia"]
[Result "1-0"]
[ECO "A16"]
[WhiteElo "2502"]
[BlackElo "2342"]
[Annotator "ChessBase"]
[PlyCount "120"]
[EventDate "2019.09.17"]
[EventType "tourn"]
[EventCountry "GEO"]
[SourceTitle "playchess.com"]
[Source "ChessBase"]
[SourceQuality "1"]
[TimeControl "900+10"]

1. c4 {[%emt 0:00:00]} Nf6 {[%emt 0:00:00]} 2. Nc3 {[%emt 0:00:00]} b6 {[%emt 0:00:04]} 3. Nf3 {[%emt 0:01:28]} Bb7 {[%emt 0:00:03]} 4. g3 {[%emt 0:00:18]} g6 {[%emt 0:00:10]} 5. Bg2 {[%emt 0:00:06]} Bg7 {[%emt 0:00:04]} 6. O-O {[%emt 0:00:10]} O-O {[%emt 0:00:04]} 7. d4 {[%emt 0:01:17]} Ne4 {[%emt 0:00:12]} 8. Nxe4 {[%emt 0:00:25]} Bxe4 {[%emt 0:00:02]} 9. Bf4 {[%emt 0:00:02]} c5 {[%emt 0:00:38]} 10. Be3 {[%emt 0:04:08]} d6 {[%emt 0:03:02]} 11. Qd2 {[%emt 0:00:18]} Nd7 {[%emt 0:00:29]} 12. Rfd1 {[%emt 0:01:12]} Qc7 {[%emt 0:01:15]} 13. Rac1 {[%emt 0:00:18]} Rac8 {[%emt 0:01:53]} 14. Bh6 {[%emt 0:00:30]} Bxh6 {[%emt 0:00:36]} 15. Qxh6 {[%emt 0:00:02]} Bxf3 {[%emt 0:00:02]} 16. exf3 {[%emt 0:00:47]} Nf6 {[%emt 0:00:30]} 17. d5 {[%emt 0:00:42]} b5 {[%emt 0:00:28]} 18. cxb5 {[%emt 0:01:12]} Qa5 {[%emt 0:00:22]} 19. Bf1 {[%emt 0:00:02]} Qxa2 {[%emt 0:00:39]} 20. Qd2 {[%emt 0:00:09]} Qb3 {[%emt 0:01:51]} 21. Rc3 {[%emt 0:01:19]} Qb4 {[%emt 0:00:02]} 22. Bc4 {[%emt 0:01:12]} Nd7 {[%emt 0:01:06]} 23. Qc2 {[%emt 0:00:12]} Ne5 {[%emt 0:00:32]} 24. b3 {[%emt 0:00:02]} Qa5 {[%emt 0:00:55]} 25. Bf1 {[%emt 0:00:28]} Rc7 {[%emt 0:00:58]} 26. Qb2 {[%emt 0:00:29]} Rfc8 {[%emt 0:00:18]} 27. Ra1 {[%emt 0:01:06]} Qb6 {[%emt 0:00:06]} 28. Bc4 {[%emt 0:00:44]} Rb7 {[%emt 0:00:53]} 29. Qe2 {[%emt 0:00:08]} Qd8 {[%emt 0:00:36]} 30. Re3 {[%emt 0:00:04]} Qd7 {[%emt 0:00:17]} 31. Ra6 {[%emt 0:00:19]} Qh3 {[%emt 0:00:22]} 32. Rc6 {[%emt 0:00:41]} Rcb8 {[%emt 0:00:32]} 33. Rxe5 {[%emt 0:00:20]} dxe5 34. Qxe5 {[%emt 0:00:00]} Qf5 {[%emt 0:00:44]} 35. f4 {[%emt 0:00:04]} Rd8 {[%emt 0:00:09]} 36. Rxc5 {[%emt 0:00:08]} Rbd7 {[%emt 0:00:04]} 37. Kg2 {[%emt 0:00:10]} h5 {[%emt 0:00:06]} 38. Rc6 {[%emt 0:00:05]} Qxe5 {[%emt 0:00:34]} 39. fxe5 {[%emt 0:00:02]} Rxd5 {[%emt 0:00:09]} 40. e6 {[%emt 0:00:16]} R5d6 {[%emt 0:00:11]} 41. exf7+ {[%emt 0:00:06]} Kf8 {[%emt 0:00:00]} 42. Be6 {[%emt 0:00:13]} Rb8 {[%emt 0:00:08]} 43. h4 {[%emt 0:00:02]} Kg7 {[%emt 0:00:11]} 44. Kf3 {[%emt 0:00:48]} Kf6 {[%emt 0:00:01]} 45. Bc4 {[%emt 0:00:07]} Kg7 {[%emt 0:00:38]} 46. Rc7 {[%emt 0:00:05]} Rf6+ {[%emt 0:00:05]} 47. Ke3 {[%emt 0:00:06]} e6 {[%emt 0:00:04]} 48. f8=Q+ {[%emt 0:00:19]} Kxf8 {[%emt 0:00:01]} 49. Rxa7 {[%emt 0:00:01]} Rf7 {[%emt 0:00:14]} 50. Ra6 {[%emt 0:00:01]} Re7 {[%emt 0:00:01]} 51. Ke4 {[%emt 0:00:05]} Kg7 {[%emt 0:00:12]} 52. Ke5 {[%emt 0:00:23]} Rf7 {[%emt 0:00:07]} 53. f4 {[%emt 0:00:11]} Rf5+ {[%emt 0:00:01]} 54. Kxe6 {[%emt 0:00:17]} Rf6+ {[%emt 0:00:08]} 55. Kd5 {[%emt 0:00:05]} Rd8+ {[%emt 0:00:07]} 56. Kc5 {[%emt 0:00:04]} Rf5+ {[%emt 0:00:06]} 57. Kb4 {[%emt 0:00:02]} g5 {[%emt 0:00:07]} 58. hxg5 {[%emt 0:00:08]} h4 {[%emt 0:00:01]} 59. gxh4 {[%emt 0:00:01]} Rxf4 {[%emt 0:00:00]} 60. Ra7+ {[%emt 0:00:10]} Kh8 {[%emt 0:00:10]} 1-0

[Event "Nino Khurtsidze Memorial 2019"]
[Site "Vani"]
[Date "2019.09.17"]
[Round "3.3"]
[White "Melia, Salome"]
[Black "Kachiani-Gersinska, Ketino"]
[Result "1/2-1/2"]
[ECO "C54"]
[WhiteElo "2376"]
[BlackElo "2317"]
[Annotator "NA"]
[PlyCount "84"]
[EventDate "2019.09.17"]
[EventType "tourn"]
[EventCountry "GEO"]
[SourceTitle "playchess.com"]
[Source "ChessBase"]
[SourceQuality "1"]
[TimeControl "900+10"]

1. e4 {[%emt 0:00:00]} e5 {[%emt 0:00:00]} 2. Nf3 {[%emt 0:00:00]} Nc6 {[%emt 0:00:00]} 3. Bc4 {[%emt 0:00:00]} Bc5 {[%emt 0:00:00]} 4. c3 {[%emt 0:00:00]} Nf6 {[%emt 0:00:01]} 5. d4 {[%emt 0:00:00]} exd4 {[%emt 0:00:03]} 6. e5 {[%emt 0:00:02]} d5 {[%emt 0:00:07]} 7. Bb5 {[%emt 0:00:01]} Ne4 {[%emt 0:00:05]} 8. cxd4 {[%emt 0:00:02]} Bb6 {[%emt 0:00:14]} 9. Nc3 {[%emt 0:00:03]} O-O {[%emt 0:00:19]} 10. Be3 {[%emt 0:00:02]} Bg4 {[%emt 0:00:12]} 11. h3 {[%emt 0:00:02]} Bh5 {[%emt 0:00:02]} 12. Qc2 {[%emt 0:00:16]} Bg6 {[%emt 0:00:09]} 13. Qb3 {[%emt 0:00:02]} Ne7 {[%emt 0:03:19]} 14. O-O {[%emt 0:00:12]} c6 {[%emt 0:00:55]} 15. Bd3 {[%emt 0:00:17]} Nd2 {[%emt 0:00:50]} 16. Nxd2 {[%emt 0:00:08]} Bxd3 {[%emt 0:00:02]} 17. Rfe1 {[%emt 0:00:22]} Bg6 {[%emt 0:00:12]} 18. Na4 {[%emt 0:00:24]} Nf5 {[%emt 0:02:30]} 19. Qc3 {[%emt 0:00:02]} f6 {[%emt 0:00:41]} 20. Nf3 {[%emt 0:02:20]} Nxe3 {[%emt 0:00:38]} 21. Qxe3 {[%emt 0:02:50]} Be4 {[%emt 0:01:06]} 22. Nxb6 {[%emt 0:04:05]} Qxb6 {[%emt 0:01:17]} 23. Nd2 {[%emt 0:00:02]} fxe5 {[%emt 0:00:55]} 24. dxe5 {[%emt 0:00:02]} Qxb2 {[%emt 0:00:59]} 25. f3 {[%emt 0:00:35]} Bg6 {[%emt 0:00:07]} 26. Nb3 {[%emt 0:00:12]} Rae8 {[%emt 0:00:24]} 27. e6 {[%emt 0:00:43]} Re7 {[%emt 0:00:17]} 28. Re2 {[%emt 0:02:58]} Qf6 {[%emt 0:00:03]} 29. Rae1 {[%emt 0:00:01]} Rfe8 {[%emt 0:00:08]} 30. Qxa7 {[%emt 0:00:56]} h5 {[%emt 0:00:07]} 31. Nd4 {[%emt 0:01:37]} Qf4 {[%emt 0:01:36]} 32. Qc5 {[%emt 0:00:12]} Qc7 {[%emt 0:00:53]} 33. Re5 {[%emt 0:00:13]} Qb8 {[%emt 0:00:20]} 34. a4 {[%emt 0:00:18]} Qc7 {[%emt 0:00:44]} 35. Rg5 {[%emt 0:00:21]} Kh7 {[%emt 0:00:11]} 36. Rxg6 {[%emt 0:01:21]} Qf4 {[%emt 0:00:11]} 37. h4 {[%emt 0:00:16]} Kxg6 {[%emt 0:00:11]} 38. Qc2+ {[%emt 0:00:07]} Kf6 {[%emt 0:00:07]} 39. Qc3 {[%emt 0:00:06]} Kg6 {[%emt 0:00:47]} 40. Qd3+ {[%emt 0:00:02]} Kf6 {[%emt 0:00:07]} 41. Qc3 {[%emt 0:00:20]} Kg6 {[%emt 0:00:04]} 42. Qd3+ {[%emt 0:00:14]} Kf6 {[%emt 0:00:02]} 1/2-1/2